bitfinex/quotes_SOLUSD_20251201
["timestamp","ask_amount","ask_price","bid_price","bid_amount"]
[1764623877698,16.81251104,124.96,124.94,13.93445133]
[1764623879209,16.81251104,124.96,124.91,8.00576415]
[1764623879401,16.81251104,124.96,124.94,13.93445133]
[1764623880416,25.11880892,124.98,124.95,13.93445133]
[1764623880713,33.12017719,124.98,124.96,13.93445133]
[1764623881186,19.9904046,125.06,124.97,13.93445133]
[1764623881392,36.86656644,125.06,125.02,13.93445133]
[1764623881713,16.308864,125.03,125.02,13.93445133]
[1764623882499,8.88,125.04,125.02,8.8844525]
[1764623882814,16.87616184,125.06,125.03,8.8844525]
[1764623883020,16.87616184,125.06,125.04,8.8844525]
[1764623883717,25.68610676,125.06,125.04,8.8844525]
[1764623884105,8.80994492,125.05,125.0,8.0]
[1764623884310,8.88,125.04,125.03,8.8844525]
[1764623888623,8.88,125.04,125.03,3.19837795]
[1764623890216,25.68785687,125.04,125.02,3.19837795]
[1764623890514,17.68994492,125.04,125.02,3.19837795]
[1764623890705,17.68994492,125.04,125.03,3.19837795]
[1764623890898,25.68738573,125.04,125.02,3.19837795]
[1764623891394,17.68994492,125.04,125.02,3.19837795]
[1764623891599,25.68749506,125.04,125.02,3.19837795]
[1764623892413,17.68994492,125.04,125.02,3.19837795]
[1764623892921,25.68748506,125.04,125.02,3.19837795]
[1764623894304,8.88,125.04,125.03,3.19837795]
[1764623895102,8.88,125.04,125.02,7.99869732]
[1764623895302,8.88,125.04,125.03,3.19837795]
[1764623895942,7.99622362,125.06,125.03,3.19837795]
[1764623895943,8.86,125.06,125.03,3.19837795]
[1764623896226,0.1,125.08,125.05,3.19837795]
[1764623896435,0.1,125.08,125.07,3.19837795]
[1764623896802,0.1,125.08,125.04,12.7935118]
[1764623897017,0.1,125.08,125.07,3.19837795]
[1764623897326,0.1,125.08,125.06,3.19837795]
[1764623897547,8.96,125.08,125.06,3.19837795]
[1764623898512,16.95517144,125.08,125.06,3.19837795]
[1764623898828,16.95517144,125.08,125.04,7.99724924]
[1764623898829,83.80994492,125.07,125.04,3.19837795]
[1764623899009,8.86,125.06,125.04,3.19837795]
[1764623899203,8.86,125.06,125.03,3.19837795]
[1764623899409,8.80994492,125.05,125.02,3.19837795]
[1764623900831,16.80722022,125.05,125.02,11.19706112]
[1764623901019,16.80722022,125.05,125.03,3.19837795]
[1764623901528,16.80722022,125.05,125.02,11.19706112]
[1764623902616,16.80722022,125.05,125.0,19.9993227]
[1764623902817,16.80722022,125.05,125.02,3.19837795]
[1764623903124,16.80722022,125.05,125.03,3.19837795]
[1764623903425,16.80722022,125.05,125.0,19.9993227]
[1764623903426,34.07880892,125.08,125.04,3.19837795]
[1764623903617,42.07374871,125.08,125.05,3.19837795]
[1764623904235,8.96,125.08,125.06,3.19837795]
[1764623905114,8.96,125.08,125.05,3.19837795]
[1764623905823,12.00832287,125.07,125.03,3.19837795]
[1764623906010,8.86,125.06,125.02,31.19389866]
[1764623906638,8.80994492,125.05,125.02,11.19709815]
[1764623906817,8.80994492,125.05,125.0,27.99925191]
[1764623907020,16.85760687,125.04,125.01,3.19837795]
[1764623907324,16.85760687,125.04,125.0,31.19762986]
[1764623907525,16.85760687,125.04,125.01,3.19837795]
[1764623908617,16.85760687,125.04,125.01,11.19766917]
[1764623909521,8.80994492,125.01,124.93,40.02090049]
[1764623909717,17.66994492,125.01,124.97,3.19837795]
[1764623910217,17.66994492,125.01,124.98,3.19837795]
[1764623910412,8.86,125.01,124.99,3.19837795]
[1764623911134,16.80873128,125.02,124.99,3.19837795]
[1764623911435,8.80994492,124.99,124.93,8.00448251]
[1764623911645,8.80994492,124.97,124.93,11.20286046]
[1764623912536,8.80994492,124.97,124.94,15.78762235]
[1764623915143,8.80994492,124.97,124.94,7.78397705]
[1764623916040,8.86,124.98,124.95,7.78397705]
[1764623916629,8.86,124.98,124.96,8.00256081]
[1764623918615,75.0,125.02,124.97,7.78397705]
[1764623918937,16.308864,125.01,124.99,7.78397705]
[1764623919156,16.308864,125.01,124.96,28.00896285]
[1764623920844,16.308864,125.01,124.97,7.78397705]
[1764623921213,16.308864,125.01,124.98,7.78397705]
[1764623922036,24.64302014,125.02,124.98,7.78397705]
[1764623922548,16.85904309,125.02,124.99,7.78397705]
[1764623922745,8.86,125.02,124.99,15.78433948]
[1764623923446,8.86,125.02,125.0,7.78397705]
[1764623924044,7.99936005,125.01,124.98,7.78397705]
[1764623924343,7.99936005,125.01,124.97,7.78397705]
[1764623924736,7.99936005,125.01,124.98,8.0012802]
[1764623925349,7.99936005,125.01,124.98,15.78525725]
[1764623929153,7.99936005,125.01,124.98,7.78397705]
[1764623930550,16.85894001,125.02,124.98,7.78397705]
[1764623931555,16.85894001,125.02,124.98,15.78490615]
[1764623931855,16.85894001,125.02,124.97,7.78397705]
[1764623931856,8.80994492,125.01,124.97,7.78397705]
[1764623932042,8.86,125.0,124.97,7.78397705]
[1764623932536,8.86,125.0,124.97,3.20075557]
[1764623934154,8.86,125.0,124.97,11.20204457]
[1764623934454,8.86,125.02,124.99,3.20075557]
[1764623935348,8.86,125.02,125.0,8.0]
[1764623935546,7.99765465,125.04,125.01,3.20075557]
[1764623936738,7.99765465,125.04,125.0,3.20075557]
[1764623936933,16.85765465,125.04,125.0,3.20075557]
[1764623937854,12.01070049,125.03,124.98,11.20203577]
[1764623938444,8.86,125.02,124.98,11.20203577]
[1764623939558,8.86,125.02,124.99,3.20075557]
[1764623940759,16.85773977,125.04,125.0,3.20075557]
[1764623940949,0.1,125.08,125.03,3.20075557]
[1764623941155,0.1,125.08,125.04,3.20075557]
[1764623941456,12.01070049,125.07,125.02,23.19660582]
[1764623941757,8.86,125.06,125.02,23.19660582]
[1764623942154,8.86,125.06,125.02,19.99585025]
[1764623942453,8.86,125.06,125.03,12.99410044]
[1764623943055,8.86,125.06,125.03,7.99802959]
[1764623943435,8.86,125.06,125.0,19.99919407]
[1764623943436,16.85648026,125.06,125.0,19.99919407]
[1764623943650,13.80601577,125.05,125.0,24.99526492]
[1764623943858,25.11880892,125.05,124.97,20.00344762]
[1764623944160,13.80601577,125.0,124.95,4.99607085]
[1764623944345,22.66601577,125.0,124.95,4.99607085]
[1764623944746,22.66601577,125.0,124.93,16.308864]
[1764623944747,17.66994492,125.0,124.96,4.99607085]
[1764623945133,25.67032754,125.0,124.96,12.99845381]
[1764623946458,25.67032754,125.0,124.96,13.93368535]
[1764623947848,39.60401289,125.0,124.95,13.93368535]
[1764623948766,25.67032754,125.0,124.96,21.93624616]
[1764623949065,39.60401289,125.0,124.96,8.00256081]
[1764623951860,13.93368535,124.97,124.92,33.94601069]
[1764623952171,13.93368535,124.97,124.89,8.80994492]
[1764623952172,8.86,125.0,124.96,13.93368535]
[1764623952475,17.66994492,125.0,124.96,13.93368535]
[1764623952772,16.86005534,125.0,124.96,13.93368535]
[1764623952974,8.86,125.0,124.97,21.93515737]
[1764623953274,24.30847134,125.01,124.97,8.00147202]
[1764623953438,38.24215669,125.01,124.97,8.00147202]
[1764623954181,22.74363027,125.0,124.93,20.01014152]
[1764623954366,17.66994492,125.0,124.95,13.93368535]
[1764623954662,31.60363027,125.0,124.95,13.93368535]
[1764623955063,39.60388229,125.0,124.96,13.93368535]
[1764623955254,25.67019694,125.0,124.96,13.93368535]
[1764623955460,8.86,125.0,124.96,13.93368535]
[1764623956072,16.86003107,125.0,124.96,13.93368535]
[1764623956270,22.74363027,124.99,124.94,21.93732517]
[1764623956773,22.74363027,124.99,124.95,13.93368535]
[1764623957071,16.81092029,124.99,124.95,21.93659253]
[1764623957867,16.81092029,124.99,124.92,16.308864]
[1764623957868,0.14216157,124.98,124.94,13.93368535]
[1764623958072,8.80994492,124.97,124.94,13.93368535]
[1764623958250,8.80994492,124.97,124.93,13.93368535]
[1764623958454,22.74363027,124.97,124.92,13.93368535]
[1764623958666,8.86,124.96,124.92,13.93368535]
[1764623958974,8.86,124.96,124.93,13.93368535]
[1764623959572,16.86256841,124.96,124.93,13.93368535]
[1764623961674,16.86256841,124.96,124.92,8.00460838]
[1764623961877,16.86256841,124.96,124.92,21.93829373]
[1764623962079,30.79625376,124.96,124.92,21.93829373]
[1764623962580,22.88579184,124.95,124.9,8.0060473]
[1764623962795,22.79368535,124.94,124.9,21.93973265]
[1764623963078,8.86,124.94,124.92,13.93368535]
[1764623963264,16.86256841,124.96,124.93,13.93368535]
[1764623963660,16.86256841,124.96,124.9,28.02206011]
[1764623963849,16.86256841,124.96,124.92,13.93368535]
[1764623964275,16.86256841,124.96,124.92,21.9385584]
[1764623965980,16.86256841,124.96,124.9,20.01601281]
[1764623966184,30.79625376,124.96,124.92,13.93368535]
[1764623966476,30.79625376,124.96,124.91,13.93368535]
[1764623967661,8.80994492,124.89,124.85,21.94293206]
[1764623967883,31.60363027,124.89,124.85,8.00924671]
[1764623968069,8.00768737,124.88,124.85,8.00924671]
[1764623968269,8.00768737,124.88,124.85,21.94293206]
[1764623968476,8.00768737,124.88,124.85,13.01959329]
[1764623968860,8.00768737,124.88,124.85,8.00924671]
[1764623969065,8.00768737,124.88,124.85,13.01959329]
[1764623970257,8.00768737,124.88,124.85,5.01034658]
[1764623970462,17.66994492,124.89,124.85,13.0196848]
[1764623970790,25.67705537,124.89,124.85,13.0196848]
[1764623971870,17.66994492,124.89,124.85,13.0196848]
[1764623972185,25.67720411,124.89,124.85,13.0196848]
[1764623972885,13.8202915,124.87,124.84,0.2]
[1764623973088,8.86,124.86,124.84,0.2]
[1764623974192,16.86905679,124.86,124.84,0.2]
[1764623974783,13.87034658,124.88,124.84,0.2]
[1764623974986,8.86,124.88,124.84,5.21034658]
[1764623976180,16.86800053,124.88,124.84,13.22053488]
[1764623976376,16.86800053,124.88,124.84,0.2]
[1764623976377,8.80994492,124.87,124.84,0.2]
[1764623976579,8.86,124.86,124.84,0.2]
[1764623977344,8.86,124.88,124.84,5.21034658]
[1764623977599,24.31598978,124.89,124.86,5.01034658]
[1764623977897,8.00712578,124.89,124.85,5.01034658]
[1764623978196,8.80994492,124.89,124.85,5.01034658]
[1764623978593,16.81744403,124.89,124.85,13.01975684]
[1764623978792,16.81744403,124.89,124.85,8.00941026]
[1764623978999,16.81744403,124.89,124.85,13.01975684]
[1764623979395,8.80994492,124.87,124.84,0.2]
[1764623979779,13.8202915,124.87,124.84,0.2]
[1764623980277,5.01034658,124.86,124.84,0.2]
[1764623980487,88.8202915,124.87,124.84,0.2]
[1764623980684,16.88897004,124.86,124.84,0.2]
[1764623983306,16.88897004,124.86,124.84,5.21034658]
[1764623983800,16.88897004,124.86,124.84,0.2]
[1764623986605,16.88897004,124.86,124.84,5.21034658]
[1764623987695,8.00897004,124.86,124.85,5.01034658]
[1764623988104,8.80994492,124.87,124.85,5.01034658]
[1764623988292,8.00803171,124.88,124.86,5.01034658]
[1764623989492,28.02579139,124.89,124.86,5.01034658]
[1764623989918,8.0070462,124.89,124.86,5.01034658]
[1764623991519,33.99880892,124.9,124.86,13.01927893]
[1764623992807,47.01567874,124.9,124.86,5.01034658]
[1764623993614,47.01567874,124.9,124.86,13.01930878]
[1764623993820,42.00533216,124.9,124.86,13.01930878]
[1764623994425,42.00533216,124.9,124.86,5.01034658]
[1764623994596,5.01034658,124.89,124.84,5.21034658]
[1764623994921,5.01034658,124.89,124.84,13.22026049]
[1764623995624,13.01802618,124.89,124.84,0.2]
[1764623995800,13.01802618,124.89,124.84,13.22059817]
[1764623996318,8.80994492,124.88,124.84,8.21025159]
[1764623996496,8.80994492,124.88,124.84,13.22059817]
[1764623996695,8.80994492,124.88,124.84,0.2]
[1764623996696,8.88,124.87,124.84,0.2]
[1764623996903,13.8202915,124.86,124.84,0.2]
[1764623997628,8.88,124.85,124.84,0.2]
[1764623999930,17.68994492,124.88,124.84,13.2205997]
[1764624000223,8.88,124.88,124.85,5.01034658]
[1764624000398,8.88,124.88,124.86,5.01034658]
[1764624000598,8.88,124.88,124.85,5.01034658]
[1764624001199,16.81442743,124.93,124.87,5.01034658]
[1764624001402,8.00448251,124.93,124.91,5.01034658]
[1764624001704,150.0,124.96,124.92,5.01034658]
[1764624001705,8.0025935,124.96,124.92,5.01034658]
[1764624001917,5.01034658,124.99,124.89,16.308864]
[1764624002110,5.01034658,124.97,124.9,16.308864]
[1764624002324,105.19921058,124.98,124.93,5.01034658]
[1764624002496,105.19921058,124.98,124.87,8.88]
[1764624002497,8.80994492,124.96,124.87,8.88]
[1764624002827,8.88,124.95,124.92,5.01034658]
[1764624003328,16.88335389,124.95,124.93,5.01034658]
[1764624004536,16.88335389,124.95,124.92,3.20284118]
[1764624005508,16.88335389,124.95,124.91,3.20284118]
[1764624005509,8.80994492,124.94,124.91,3.20284118]
[1764624005911,8.80994492,124.94,124.9,3.20284118]
[1764624006213,8.80994492,124.94,124.91,3.20284118]
[1764624006525,8.80994492,124.94,124.92,3.20284118]
[1764624007938,8.88,124.95,124.93,3.20284118]
[1764624008146,8.88,124.95,124.94,3.20284118]
[1764624008321,16.308864,124.97,124.94,3.20284118]
[1764624008637,8.00130478,124.98,124.95,11.20590299]
[1764624008812,8.00130478,124.98,124.96,3.20284118]
[1764624009212,8.00130478,124.98,124.95,11.20590299]
[1764624009535,8.00130478,124.98,124.95,8.00306181]
[1764624009735,8.80994492,124.95,124.92,3.20284118]
[1764624009934,17.66994492,124.95,124.92,3.20284118]
[1764624010723,17.66994492,124.95,124.89,36.32558529]
[1764624011034,25.67339385,124.95,124.91,3.20284118]
[1764624011430,17.66994492,124.95,124.92,3.20284118]
[1764624011814,17.66994492,124.95,124.91,3.20284118]
[1764624012327,17.66994492,124.95,124.91,7.78632807]
[1764624012511,17.66994492,124.95,124.92,7.78632807]
[1764624012829,17.66994492,124.95,124.93,8.00448251]
[1764624013339,17.66994492,124.95,124.92,15.79116019]
[1764624013646,17.66994492,124.95,124.92,8.00483212]
[1764624013848,17.66994492,124.95,124.92,15.79116019]
[1764624018636,8.86,124.95,124.93,7.78632807]
[1764624020538,8.86,124.95,124.93,15.79051971]
[1764624021237,24.31093344,124.97,124.93,15.79051971]
[1764624021440,16.308864,124.97,124.94,7.78632807]
[1764624021640,16.86138625,124.98,124.95,7.78632807]
[1764624022522,16.86138625,124.98,124.95,15.78922995]
[1764624023139,33.16903193,125.0,124.96,7.78632807]
[1764624024634,40.95536,125.0,124.97,8.00192046]
[1764624025023,33.16903193,125.0,124.97,8.00192046]
[1764624029240,16.86016793,125.0,124.97,8.00192046]
[1764624029738,16.86016793,125.0,124.97,15.78824853]
[1764624030451,8.80994492,125.01,124.98,7.78632807]
[1764624030652,16.80930791,125.01,124.96,8.00215789]
[1764624030833,17.66994492,125.0,124.96,15.78848596]
[1764624032254,25.66994793,125.0,124.96,15.78848596]
[1764624032438,25.66994793,125.0,124.96,11.20304251]
[1764624033855,17.66994492,125.0,124.96,31.20944455]
[1764624034224,25.669945,125.0,124.96,31.20944455]
[1764624034442,17.66994492,125.0,124.96,31.20944455]
[1764624035352,25.66994926,125.0,124.96,8.00215789]
[1764624035652,25.66994926,125.0,124.96,11.20304251]
[1764624036152,17.66994492,125.0,124.98,8.0012802]
[1764624036738,25.66999028,125.0,124.97,11.20251203]
[1764624036943,25.66999028,125.0,124.97,8.00162741]
[1764624037856,3.20088462,124.99,124.94,23.20940407]
[1764624038159,28.8708749,125.0,124.96,8.00256081]
[1764624039662,28.8708749,125.0,124.95,11.20405818]
[1764624040554,8.80994492,124.98,124.95,8.00317356]
[1764624040756,8.86,124.97,124.95,8.00317356]
[1764624041361,8.86,124.97,124.95,11.20405818]
[1764624042458,8.86,124.97,124.95,8.00317356]
[1764624043461,8.80994492,124.98,124.95,8.00317356]
[1764624043670,8.80994492,124.98,124.94,23.20940407]
[1764624043671,8.86,124.99,124.96,3.20088462]
[1764624044362,17.66994492,125.01,124.97,3.20088462]
[1764624044570,8.80994492,125.03,125.0,3.20088462]
[1764624045577,8.80994492,125.03,124.97,25.168864]
[1764624045771,8.80994492,125.03,125.0,11.20069946]
[1764624046673,8.80994492,125.03,125.01,3.20088462]
[1764624046966,8.80994492,125.03,125.0,11.20069946]
[1764624047855,8.80994492,125.03,125.01,3.20088462]
[1764624048173,16.99909994,125.05,125.01,3.20088462]
[1764624048470,0.1,125.08,125.04,3.20088462]
[1764624048647,0.1,125.08,125.06,3.20088462]
[1764624048849,0.1,125.08,125.05,3.20088462]
[1764624049270,0.1,125.08,125.06,3.20088462]
[1764624049472,0.1,125.08,125.05,3.20088462]
[1764624049849,0.1,125.08,125.05,11.19738103]
[1764624050554,0.1,125.08,125.05,3.20088462]
[1764624050755,0.1,125.08,125.05,11.19765953]
[1764624050956,0.1,125.08,125.05,3.20088462]
[1764624051156,0.1,125.08,125.06,3.20088462]
[1764624051885,0.1,125.08,125.07,3.20088462]
[1764624052174,0.1,125.08,125.07,12.06088462]
[1764624053570,0.1,125.1,125.07,15.26176924]
[1764624053771,0.1,125.13,125.11,16.308864]
[1764624054082,0.1,125.13,125.1,1.99999999]
[1764624054083,0.1,125.13,125.12,29.00531847]
[1764624054281,0.1,125.13,125.12,16.99448893]
[1764624054500,0.1,125.13,125.12,42.16672914]
[1764624054709,0.1,125.13,125.12,33.30672914]
[1764624054972,0.1,125.13,125.12,33.16119136]
[1764624055176,0.1,125.13,125.12,16.85232736]
[1764624055962,0.1,125.13,125.12,16.99448893]
[1764624056368,0.1,125.13,125.12,25.85786514]
[1764624057385,0.1,125.13,125.12,27.85786513]
[1764624057588,0.1,125.13,125.12,25.85786514]
[1764624057769,0.1,125.13,125.12,27.85786513]
[1764624058095,0.1,125.13,125.12,9.00216157]
[1764624058271,0.1,125.13,125.12,16.99448893]
[1764624059059,0.1,125.13,125.12,9.00216157]
[1764624059275,0.1,125.13,125.12,16.99448893]
[1764624060258,0.1,125.13,125.12,16.85232736]
[1764624060782,0.1,125.13,125.12,7.99232736]
[1764624060953,0.1,125.13,125.12,16.85232736]
[1764624061159,0.1,125.27,125.21,4.17843849]
[1764624061377,0.1,125.27,125.22,17.72337621]
[1764624061958,0.1,125.27,125.23,27.94857461]
[1764624062165,0.1,125.27,125.25,8.86337621]
[1764624062366,0.1,125.27,125.25,17.80337621]
[1764624063582,0.1,125.27,125.26,0.14216157]
[1764624063764,0.21623377,125.36,125.29,16.308864]
[1764624063965,0.21137938,125.43,125.35,8.86337621]
[1764624064167,0.21137938,125.43,125.33,0.14216157]
[1764624064168,8.86337621,125.43,125.33,0.14216157]
[1764624064384,0.21785398,125.41,125.35,0.14216157]
[1764624064683,0.21137938,125.43,125.34,16.308864]
[1764624064980,0.21137938,125.43,125.35,8.96]
[1764624065382,8.80994492,125.42,125.34,16.308864]
[1764624065691,0.21785398,125.41,125.38,8.86337621]
[1764624065885,0.21785398,125.41,125.35,8.94]
[1764624066179,0.21785398,125.41,125.38,8.86337621]
[1764624066380,33.09207503,125.42,125.39,13.77863376]
[1764624066381,25.11880892,125.42,125.39,13.77863376]
[1764624066569,25.11880892,125.42,125.39,13.83860696]
[1764624066768,25.30869611,125.42,125.39,13.83860696]
[1764624066989,33.28210848,125.42,125.35,16.9175922]
[1764624067172,13.83860696,125.36,125.35,16.9175922]
[1764624067893,13.83860696,125.36,125.35,8.94]
[1764624068058,13.83860696,125.36,125.33,27.9242977]
[1764624068262,13.83860696,125.35,125.34,8.94]
[1764624068468,8.80994492,125.4,125.34,8.94]
[1764624068781,13.83860696,125.36,125.34,8.94]
[1764624068990,13.83860696,125.35,125.34,8.94]
[1764624069468,4.97711139,125.46,125.34,9.08216157]
[1764624069670,4.97711139,125.46,125.36,16.308864]
[1764624069883,13.83860696,125.42,125.37,22.92076853]
[1764624070186,13.83860696,125.42,125.39,0.14216157]
[1764624070388,13.83860696,125.4,125.37,0.14216157]
[1764624070593,13.83860696,125.38,125.36,16.308864]
[1764624070884,13.83860696,125.39,125.38,8.94]
[1764624071289,8.80994492,125.38,125.3,23.97602397]
[1764624071587,13.83860696,125.31,125.29,7.98111933]
[1764624071891,13.83860696,125.31,125.26,1.99999999]
[1764624071892,13.83860696,125.31,125.3,8.96]
[1764624072062,13.83860696,125.31,125.25,21.95940477]
[1764624072263,13.83860696,125.31,125.24,53.76084286]
[1764624072264,13.83860696,125.29,125.26,38.90188086]
[1764624072571,13.83860696,125.3,125.28,0.14216157]
[1764624072771,8.80994492,125.36,125.3,0.14216157]
[1764624072994,13.83860696,125.32,125.3,0.14216157]
[1764624073568,8.80994492,125.39,125.33,0.14216157]
[1764624073891,13.83860696,125.38,125.35,0.14216157]
[1764624074099,82.9713033,125.45,125.37,0.14216157]
[1764624074100,13.83860696,125.39,125.37,0.14216157]
[1764624074394,8.80994492,125.42,125.38,8.96]
[1764624074603,13.83860696,125.39,125.38,8.96]
[1764624074967,13.83860696,125.39,125.33,8.96]
[1764624075179,13.83860696,125.37,125.34,17.08029069]
[1764624075379,8.80994492,125.42,125.34,17.08029069]
[1764624075585,13.83860696,125.37,125.34,37.02603825]
[1764624075889,13.83860696,125.38,125.34,37.02603825]
[1764624076189,8.80994492,125.42,125.34,37.02603825]
[1764624076361,13.83860696,125.36,125.34,37.02603825]
[1764624076767,13.83860696,125.35,125.34,17.08029069]
[1764624076985,13.83860696,125.35,125.33,16.308864]
[1764624077185,13.83860696,125.34,125.33,16.308864]
[1764624077493,8.80994492,125.42,125.33,25.248864]
[1764624077669,13.83860696,125.36,125.34,0.14216157]
[1764624078288,13.83860696,125.37,125.36,0.14216157]
[1764624078471,8.80994492,125.42,125.36,9.08216157]
[1764624078681,13.83860696,125.37,125.36,9.08216157]
[1764624079301,13.83860696,125.37,125.36,8.94]
[1764624080002,8.80994492,125.36,125.29,18.78323611]
[1764624080203,13.83860696,125.31,125.3,8.94]
[1764624080415,8.80994492,125.36,125.3,25.39102557]
[1764624080708,13.83860696,125.31,125.3,9.08216157]
[1764624080894,13.83860696,125.31,125.3,25.248864]
[1764624081092,13.83860696,125.31,125.3,8.94]
[1764624081292,8.80994492,125.36,125.31,7.98020908]
[1764624081490,13.83860696,125.32,125.31,7.98020908]
[1764624081688,13.83860696,125.37,125.32,0.14216157]
[1764624082006,13.83860696,125.37,125.33,8.94]
[1764624082687,13.83860696,125.34,125.33,16.91845664]
[1764624083310,13.83860696,125.34,125.33,7.97845664]
[1764624083509,13.83860696,125.34,125.33,16.91845664]
[1764624084307,8.80994492,125.42,125.36,16.308864]
[1764624084505,13.83860696,125.37,125.36,16.308864]
[1764624084687,13.83860696,125.37,125.36,25.248864]
[1764624085715,13.83860696,125.37,125.36,33.22589016]
[1764624086416,13.83860696,125.37,125.36,16.91702616]
[1764624086712,13.83860696,125.37,125.36,36.85959157]
[1764624087210,13.83860696,125.39,125.36,36.85959157]
[1764624087793,8.80994492,125.44,125.36,36.85959157]
[1764624087990,13.83860696,125.39,125.36,36.85959157]
[1764624088592,13.83860696,125.4,125.36,36.85959157]
[1764624089004,13.83860696,125.41,125.36,36.85959157]
[1764624089310,4.97711139,125.46,125.37,30.28963253]
[1764624089510,4.97711139,125.46,125.4,0.14216157]
[1764624089511,13.83860696,125.45,125.4,0.14216157]
[1764624089716,13.83860696,125.42,125.41,8.94]
[1764624090402,13.83860696,125.43,125.41,8.94]
[1764624090600,4.97711139,125.46,125.41,16.91355186]
[1764624090601,13.83860696,125.42,125.41,16.91355186]
[1764624090813,13.83860696,125.42,125.41,8.94]
[1764624090994,13.83860696,125.42,125.41,16.91384578]
[1764624091195,4.97711139,125.46,125.41,16.91384578]
[1764624091410,4.97711139,125.46,125.41,36.84846024]
[1764624091820,4.97711139,125.46,125.42,0.14216157]
[1764624092128,4.97711139,125.46,125.45,0.14216157]
[1764624092304,4.97711139,125.46,125.45,9.08216157]
[1764624092504,4.97711139,125.46,125.45,17.05346487]
[1764624092711,4.97711139,125.46,125.45,16.9113033]
[1764624092712,18.81571835,125.46,125.45,16.9113033]
[1764624093113,4.97711139,125.46,125.45,16.9113033]
[1764624093304,4.97711139,125.46,125.45,17.05346487]
[1764624095530,18.81571835,125.46,125.45,8.94]
[1764624096032,4.97711139,125.46,125.45,8.94]
[1764624096620,4.97711139,125.46,125.45,16.9113033]
[1764624097311,4.97711139,125.46,125.45,17.05346487]
[1764624097520,4.97711139,125.46,125.45,8.94]
[1764624097698,4.97711139,125.46,125.41,50.08121953]
[1764624097899,4.97711139,125.46,125.42,8.94]
[1764624098806,4.97711139,125.46,125.42,16.91298036]
[1764624099006,4.97711139,125.46,125.42,8.94]
[1764624099007,13.83860696,125.45,125.42,8.94]
[1764624099212,4.97711139,125.46,125.42,36.84608223]
[1764624099417,4.97711139,125.46,125.42,50.68468919]
[1764624101023,4.97711139,125.46,125.42,36.84608223]
[1764624101531,4.97711139,125.46,125.42,50.68468919]
[1764624102137,4.97711139,125.46,125.42,36.84608223]
[1764624102333,4.97711139,125.46,125.44,7.97193877]
[1764624102504,4.97711139,125.46,125.45,8.94]
[1764624103301,18.81571835,125.46,125.39,19.93683717]
[1764624103507,8.80994492,125.45,125.4,8.94]
[1764624103736,4.97711139,125.46,125.41,22.77860696]
[1764624103938,4.97711139,125.46,125.42,13.83860696]
[1764624104143,4.97711139,125.46,125.43,13.98076853]
[1764624104438,4.97711139,125.46,125.44,30.75054573]
[1764624104641,1e-08,125.46,125.45,0.14216157]
[1764624104816,1e-08,125.46,125.45,35.22859027]
[1764624105011,1e-08,125.46,125.45,49.06719723]
[1764624105212,1e-08,125.46,125.45,39.26963253]
[1764624105822,1e-08,125.46,125.45,27.43102556]
[1764624106128,1e-08,125.46,125.45,39.26963253]
[1764624106441,1e-08,125.46,125.45,47.24093583]
[1764624106747,100.0,125.55,125.54,30.28963253]
[1764624107028,100.0,125.55,125.54,39.28963253]
[1764624107209,100.0,125.55,125.54,25.45102557]
[1764624107406,100.0,125.55,125.54,39.28963253]
[1764624108020,100.0,125.55,125.54,25.45102557]
[1764624108203,100.0,125.55,125.54,47.25522118]
[1764624109038,100.0,125.55,125.54,33.41661422]
[1764624109739,100.0,125.55,125.54,47.25522118]
[1764624111324,46.4492859,125.55,125.54,49.25522117]
[1764624111524,1e-08,125.55,125.54,49.25522117]
[1764624111815,1e-08,125.55,125.54,32.94635717]
[1764624112010,1e-08,125.55,125.54,41.75630209]
[1764624112643,1e-08,125.55,125.54,42.55286095]
[1764624113431,1e-08,125.55,125.54,33.74291603]
[1764624113614,1e-08,125.55,125.54,32.94635717]
[1764624114407,1e-08,125.55,125.54,47.25522118]
[1764624114822,1e-08,125.55,125.54,49.25522117]
[1764624115115,1e-08,125.55,125.54,47.25522118]
[1764624115536,1e-08,125.55,125.54,49.25522117]
[1764624116040,1e-08,125.55,125.54,50.05178003]
[1764624116629,1e-08,125.55,125.54,63.89038699]
[1764624116834,1e-08,125.55,125.54,50.05178003]
[1764624117518,0.1,125.59,125.57,16.308864]
[1764624117722,0.1,125.59,125.58,22.96076853]
[1764624118436,0.1,125.59,125.58,30.92381997]
[1764624119526,1e-08,125.59,125.58,19.88151814]
[1764624119733,1e-08,125.59,125.58,30.7816584]
[1764624119961,1e-08,125.59,125.58,32.78165839]
[1764624120253,114.75879347,125.76,125.61,18.30886399]